Cogmind - Beta 13 @@@ ROGUE MODE // 2024.07.07 @ 22:22:23 Player: Duduxx Result: Destroyed by Heavy Explosive Trap Performance ------------- Evolutions (1) 500 Regions Visited (4) 800 Robots Destroyed (50) 250 Value Destroyed (1514) 1514 Prototype IDs (3) 60 Alien Tech Used (0) 0 Bonus (302) 302 TOTAL SCORE: 3426 Bonus ------- High Alert Combat Kills 102 Entered Garrisons 200 Cogmind --------- Core Integrity 0/400 Matter 291/300 Energy 261/265 System Corruption 5% Temperature Cool (2) Movement Treading (240) Ox1 Location -9/Garrison Parts ------- > --- POWER (1) -------- Reinforced Ion Engine > --- PROPULSION (2) --- Improved Treads > --- UTILITY (4) ------ Large Storage Unit Melee Analysis Suite > --- WEAPON (2) ------- Heavy Assault Rifle Heavy Assault Rifle > --- INVENTORY (15) --- Improved Treads Structural Scanner Sensor Array Sensor Array Sensor Array Signal Interpreter Grenade Launcher Grenade Launcher Katana Peak State ------------ > --- POWER ------------ Cooled Ion Engine > --- PROPULSION ------- Armored Wheel Armored Wheel > --- UTILITY ---------- Improved Heat Sink Large Storage Unit Structural Scanner Light Armor Plating > --- WEAPON ----------- Heavy Assault Rifle Heavy Assault Rifle > --- INVENTORY -------- Cooled Ion Engine Light Nuclear Core Improved Treads Improved Treads Improved Treads Sensor Array Sensor Array Sensor Array Signal Interpreter Heavy Assault Rifle Heavy Assault Rifle EMP Blaster Grenade Launcher Grenade Launcher [Rating: 19] Favorites ----------- Power Ion Engine Engine Ion Engine Power Core Light Nuclear Core Propulsion Armored Wheel Treads Improved Treads Leg Improved Aluminum Leg Wheel Armored Wheel Utility Large Storage Unit Device Improved Heat Sink Storage Large Storage Unit Processor Melee Analysis Suite Protection Light Armor Plating Weapon Heavy Assault Rifle Energy Gun Small Laser Ballistic Gun Heavy Assault Rifle Launcher EMP Blaster Slashing Weapon Katana Build | -11 -10 -9 -9 -9 ------- Run | Yrd Mat Mat Sto Gar Slots Evolved 2 | . . 2 . . Power . | . . . . . Propulsion . | . . . . . Utility 2 | . . 2 . . Weapon . | . . . . . Parts Attached 51 | 6 4 12 3 26 Power 9 | 1 . 2 2 4 Engine 8 | 1 . 2 2 3 Core 1 | . . . . 1 Reactor . | . . . . . Propulsion 14 | 2 1 3 . 8 Treads 4 | . . . . 4 Leg 4 | . . . . 4 Wheel 6 | 2 1 3 . . Hover . | . . . . . Flight . | . . . . . Utility 11 | 1 2 4 . 4 Device 5 | . 1 3 . 1 Storage 2 | 1 1 . . . Processor 1 | . . . . 1 Hackware . | . . . . . Protection 3 | . . 1 . 2 Artifact . | . . . . . Weapon 17 | 2 1 3 1 10 Energy Gun 2 | 1 . 1 . . Energy Cannon . | . . . . . Ballistic Gun 9 | 1 1 2 1 4 Ballistic Cannon . | . . . . . Launcher 4 | . . . . 4 Special Weapon . | . . . . . Impact Weapon . | . . . . . Slashing Weapon 2 | . . . . 2 Piercing Weapon . | . . . . . Special Melee Weapon . | . . . . . Unidentified Prototypes 3 | . . 2 1 . Parts Lost 18 | . 2 4 . 12 Power 3 | . . . . 3 Propulsion 5 | . 1 1 . 3 Utility 5 | . . 1 . 4 Weapon 5 | . 1 2 . 2 Highest Loss Streak 5 | . 2 2 . 5 To Critical Strikes 1 | . . . . 1 Average Slot Usage (%) 90 | . 92 94 100 85 Engine 11 | . 14 11 11 10 Treads 4 | . . . . 10 Leg 3 | . . . . 8 Wheel 14 | . 26 21 22 2 Device 15 | . 8 23 22 9 Storage 11 | . 13 11 11 11 Processor 3 | . . . . 9 Protection 3 | . . 4 11 1 Energy Gun 2 | . 7 3 . . Ballistic Gun 18 | . 20 18 22 16 Slashing Weapon 1 | . . . . 3 Naked Turns . | . . . . . Heaviest Build 39 | 13 30 38 39 39 Greatest Support 46 | 32 32 26 24 46 Greatest Overweight (x) 10 | . 1 10 1 2 Average Overweight (x) . | . . 1 1 . Largest Inventory Capacity 15 | 8 15 15 15 15 Average Capacity 14 | 7 14 15 15 15 Most Carried 15 | 4 8 12 15 15 Average Carried 9 | 2 5 9 13 10 Final Capacity 15 | 8 15 15 15 15 Final Carried 14 | 4 8 12 14 9 Class Distribution -------------------- 64% | Mutant 35% | Scavenger-Mutant Dominant Class ---------------- Mutant | -10/Materials Mutant | -9/Materials Scavenger-Mutant | -9/Storage Scavenger-Mutant | -9/Garrison Resources | -11 -10 -9 -9 -9 ----------- Run | Yrd Mat Mat Sto Gar Matter Collected 1160 | 188 189 217 120 446 Remotely . | . . . . . Salvage Created 1812 | . 288 534 251 739 Parts 117 | . 17 34 16 50 Haulers Intercepted . | . . . . . Recyclers Shooed 2 | . . 2 . . Parts Field Recycled . | . . . . . Retrieved Matter . | . . . . . Parts Self-Destructed . | . . . . . Prevented . | . . . . . Kills | -11 -10 -9 -9 -9 ------- Run | Yrd Mat Mat Sto Gar Combat Hostiles Destroyed 45 | . 6 13 5 21 Melee 5 | . . . . 5 Guns 34 | . 6 12 5 11 AOE 6 | . . 1 . 5 Classes Destroyed 9 | . 3 3 1 2 Builder 2 | . 1 1 . . Tunneler 1 | . 1 . . . Operator 1 | . . . 1 . Watcher 1 | . . 1 . . Swarmer 10 | . . 4 . 6 Grunt 23 | . 6 5 2 10 Brawler 3 | . . . . 3 Duelist 2 | . . . . 2 Sentry 7 | . . 4 3 . Best Kill Streak 8 | . 4 4 3 8 Combat Bots Only 8 | . 4 4 2 8 Max Kills in Single Turn 3 | . 1 2 1 3 Gunslinging 1 | . . . . 1 Exploded 3 | . . 1 . 3 Melee 1 | . . . . 1 Uniques/NPCs Destroyed . | . . . . . Combat | -11 -10 -9 -9 -9 -------- Run | Yrd Mat Mat Sto Gar Hostile Shots Fired 255 | . 37 53 25 140 Missed 76 | . 10 16 8 42 Damage Taken 2715 | . 374 494 286 1561 Core 544 | . 128 102 95 219 Absorbed by Shields . | . . . . . Core Remaining (%) 74 | 100 48 . . . Volleys Fired 115 | . 25 30 19 41 Largest 2 | . 2 2 2 2 Hottest 65 | . 60 65 46 56 Shots Fired 204 | . 50 55 38 61 Gun 199 | . 50 55 38 56 Cannon . | . . . . . Launcher 5 | . . . . 5 Special . | . . . . . Kinetic 164 | . 31 39 38 56 Thermal 19 | . 19 . . . Explosive 2 | . . . . 2 Electromagnetic 19 | . . 16 . 3 Robot Hit Streak 9 | . 9 6 6 9 Robot Miss Streak 3 | . 2 2 2 3 Penetration Max . | . . . . . Secondary Targets 3 | . . . . 3 Max Gunslinging Chain 1 | . . . . 1 Shots Hit Robots 157 | . 37 41 25 54 Core Hits 81 | . 16 23 9 33 Critical Kills . | . . . . . Critical Parts Destroyed . | . . . . . Critical Strikes 1 | . . . . 1 Sever 1 | . . . . 1 Melee Attacks 11 | . . . . 11 Impact . | . . . . . Slashing 11 | . . . . 11 Piercing . | . . . . . Sneak Attacks . | . . . . . Combat Hostiles . | . . . . . Follow-up Attacks . | . . . . . Damage Inflicted 2725 | 1 447 743 439 1095 Guns 1907 | . 443 573 328 563 Cannons . | . . . . . Explosions 452 | . . 109 111 232 Melee 300 | . . . . 300 Ramming 66 | 1 4 61 . . Kinetic 1515 | . 253 371 328 563 Thermal 382 | . 190 109 . 83 Explosive 143 | . . . 111 32 Electromagnetic 319 | . . 202 . 117 Impact . | . . . . . Slashing 300 | . . . . 300 Piercing . | . . . . . Highest Corruption 5 | . . . . 5 Average Corruption 4 | . . . . 4 Corruption Purged . | . . . . . Corruption Blocked . | . . . . . Effects 8 | . . . . 8 Message Errors 2 | . . . . 2 Matter Fused 4 | . . . . 4 Energy Discharges 1 | . . . . 1 Data Loss (major) 1 | . . . . 1 Overload Shots . | . . . . . Overflow Damage . | . . . . . Projectiles . | . . . . . Explosions . | . . . . . Melee . | . . . . . Knockbacks 1 | . . 1 . . Impact 1 | . . 1 . . Kinetic . | . . . . . Secondary . | . . . . . Self-Inflicted Damage 115 | . 2 52 54 7 Shots 3 | . . 1 1 1 Rammed 7 | 1 1 5 . . Targets Rammed 7 | 1 1 5 . . Kicked . | . . . . . Crushed . | . . . . . Highest Temperature 72 | . 72 . . 18 Average Temperature 26 | . 36 . . 7 Received Heat Transfer 804 | . 210 171 93 330 Siege Activations . | . . . . . Robots Corrupted . | . . . . . Combat Hostiles . | . . . . . Parts Fried . | . . . . . Impact Corruptions . | . . . . . Robots Melted . | . . . . . Combat Hostiles . | . . . . . Parts Melted . | . . . . . Heat Transferred 825 | . 425 150 . 250 Parts Sabotaged . | . . . . . Parts Stolen . | . . . . . Parts Stripped . | . . . . . Power Chain Reactions 3 | . . 1 . 2 Alert | -11 -10 -9 -9 -9 ------- Run | Yrd Mat Mat Sto Gar Peak Influence 682 | . 168 473 441 682 Initial 286 | . . 70 132 286 Average 313 | . 88 280 220 478 Maximum Alert Level 2 | . . 2 2 2 Low Security (%) 32 | 100 100 27 54 . Level 1 36 | . . 50 43 38 Level 2 31 | . . 21 2 61 Level 3 . | . . . . . Level 4 . | . . . . . Level 5 . | . . . . . High Security . | . . . . . Max Security . | . . . . . Squads Dispatched 6 | . 1 3 2 . Investigation 3 | . . 2 1 . Extermination . | . . . . . Reinforcement 3 | . 1 1 1 . Assault . | . . . . . Garrison . | . . . . . Intercept . | . . . . . Searches Triggered . | . . . . . Construction Impeded . | . . . . . Haulers Reinforced . | . . . . . Active Scanning Responses . | . . . . . Cargo Convoy Interrupts . | . . . . . Stealth | -11 -10 -9 -9 -9 --------- Run | Yrd Mat Mat Sto Gar Distress Signals 2 | . . 1 1 . Communications Jammed . | . . . . . Distress Signals . | . . . . . Times Spotted 54 | . 8 17 6 23 Peak Tracking Total 7 | . 4 5 5 7 Tactical Retreats 2 | . . 1 1 . Traps | -11 -10 -9 -9 -9 ------- Run | Yrd Mat Mat Sto Gar Traps Triggered 7 | . . 1 . 6 Indirectly . | . . . . . Trap Hack Attempts . | . . . . . Triggered . | . . . . . Disarmed 6 | . . . 6 . Reprogrammed . | . . . . . Reused . | . . . . . Traps Extracted . | . . . . . Installed . | . . . . . Triggered . | . . . . . Machines | -11 -10 -9 -9 -9 ---------- Run | Yrd Mat Mat Sto Gar Machines Disabled 4 | . . . 4 . Max in Single Turn 2 | . . . 2 . Machines Repaired . | . . . . . Machines Dismantled . | . . . . . Machines Sabotaged . | . . . . . Overloaded Fab Kills . | . . . . . Hacking | -11 -10 -9 -9 -9 --------- Run | Yrd Mat Mat Sto Gar Machines Accessed 14 | . 4 3 5 2 Terminals 10 | . 3 2 3 2 Fabricators . | . . . . . Repair Stations . | . . . . . Recycling Units 2 | . 1 . 1 . Scanalyzers 1 | . . 1 . . Garrison Access 1 | . . . 1 . Total Hacks 29 | . 6 11 10 2 Successful 21 | . 4 7 8 2 Failed 8 | . 2 4 2 . Catastrophic . | . . . . . Database Lockouts . | . . . . . Manual 4 | . . 3 1 . Terminals 23 | . 5 8 8 2 Fabricators . | . . . . . Repair Stations . | . . . . . Recycling Units 2 | . 1 . 1 . Scanalyzers 3 | . . 3 . . Garrison Access 1 | . . . 1 . Terminal Hacks 17 | . 3 6 6 2 Record 3 | . . 3 . . Open Door 1 | . . . 1 . Branch Access Points 1 | . . 1 . . Alert Level 1 | . . . 1 . Locate Traps 2 | . . 1 1 . Disarm Traps 1 | . . . 1 . Recall Investigation 1 | . . . 1 . Hauler Manifests 1 | . 1 . . . Registered Components 1 | . 1 . . . Zone Layout 3 | . 1 1 1 . Patrol Navigation 1 | . . . . 1 Security Stations 1 | . . . . 1 Fabricator Hacks . | . . . . . Repair Station Hacks . | . . . . . Recycling Unit Hacks 2 | . 1 . 1 . Report Inventory 2 | . 1 . 1 . Scanalyzer 1 | . . 1 . . Insert Component 1 | . . 1 . . Garrison Access Hacks 1 | . . . 1 . Unlock Access 1 | . . . 1 . Unauthorized Hacks . | . . . . . Terminals . | . . . . . Fabricators . | . . . . . Repair Stations . | . . . . . Recycling Units . | . . . . . Scanalyzers . | . . . . . Garrison Access . | . . . . . Data Cores Recovered . | . . . . . Used . | . . . . . Hacking Detections 9 | . 4 2 3 . Full Trace Events 3 | . . 2 1 . Feedback Events . | . . . . . Feedback Blocked . | . . . . . Robot Schematics Acquired . | . . . . . Robots Built . | . . . . . Authchips . | . . . . . Time . | . . . . . Total Robot Build Rating . | . . . . . Part Schematics Acquired . | . . . . . Parts Built . | . . . . . Authchips . | . . . . . Time . | . . . . . Total Part Build Rating . | . . . . . Parts Repaired . | . . . . . Time . | . . . . . Parts Recycled . | . . . . . Recycled Matter . | . . . . . Retrieved Matter . | . . . . . Retrieved Components . | . . . . . Parts Scanalyzed 1 | . . 1 . . Part Schematics Acquired . | . . . . . Parts Damaged . | . . . . . Bothacking | -11 -10 -9 -9 -9 ------------ Run | Yrd Mat Mat Sto Gar Used RIF Installer . | . . . . . Robots Hacked . | . . . . . Non-combat . | . . . . . Combat . | . . . . . Robot Hacks Applied . | . . . . . Relay Couplers Released . | . . . . . Fabnet Peak Effective % . | . . . . . Robots Rewired . | . . . . . Allies Hacked . | . . . . . Hacks Repelled . | . . . . . Allies | -11 -10 -9 -9 -9 -------- Run | Yrd Mat Mat Sto Gar Total Allies . | . . . . . Largest Group . | . . . . . Highest-Rated Group . | . . . . . Highest-Rated Ally . | . . . . . Total Orders . | . . . . . Ally Attacks . | . . . . . Total Damage . | . . . . . Kills . | . . . . . Allies Corrupted . | . . . . . Allies Melted . | . . . . . Intel | -11 -10 -9 -9 -9 ------- Run | Yrd Mat Mat Sto Gar Robot Analysis Total . | . . . . . Derelict Logs Recovered . | . . . . . Drone Launches . | . . . . . Drone Recoveries . | . . . . . Exploration | -11 -10 -9 -9 -9 ------------- Run | Yrd Mat Mat Sto Gar Turns Passed 2023 | 59 310 645 222 787 Spaces Moved 1229 | 46 212 463 148 360 Core 4 | 1 . 3 . . Treads 220 | . . . . 220 Legs 100 | . . . . 100 Wheels 905 | 45 212 460 148 40 Hover . | . . . . . Flight . | . . . . . Fastest Speed 50 | 50 100 95 105 105 Average Speed 122 | 98 102 107 105 164 Slowest Speed 550 | 100 115 550 105 240 Overloaded Moves . | . . . . . Propulsion Burnouts . | . . . . . Robots Hopped . | . . . . . Cave-ins Triggered . | . . . . . Exploration Rate (%) 35 | 3 40 38 29 65 Regions Visited 4 Branch Regions 1 Pre-discovered Areas . | . . . . . Known Exits Taken 2 | . . 1 1 . Unknown Exits Taken 2 | 1 1 . . . Scrap Searched . | . . . . . Spaces Dug . | . . . . . Terrain Destroyed 33 | . . 5 22 6 Melee . | . . . . . Projectile . | . . . . . AOE 33 | . . 5 22 6 Terrain Rammed . | . . . . . Walls Destroyed . | . . . . . Machines Disabled . | . . . . . Actions | -11 -10 -9 -9 -9 --------- Run | Yrd Mat Mat Sto Gar Total 1519 | 56 253 557 178 475 Wait 31 | . 5 26 . . Move 1226 | 46 211 462 147 360 Hop . | . . . . . Pick Up 25 | 4 5 10 3 3 Fast Attach 26 | 6 3 7 2 8 Attach 16 | . 1 4 1 10 Detach 15 | . 1 5 3 6 Swap 9 | . . 1 . 8 Drop 15 | . 1 7 3 4 Fire 115 | . 25 30 19 41 Melee 11 | . . . . 11 Ram 6 | . 1 5 . . Kick . | . . . . . Crush . | . . . . . Escape Stasis 24 | . . . . 24 Rewire . | . . . . . Trap . | . . . . . Miscellaneous . | . . . . . Route ------- -11/Scrapyard -10/Materials -9/Materials (discovered 4 exits: [*Mat] / Min / *Sto x2) -9/Storage -9/Garrison (discovered 2 exits: [*Rec x2]) History --------- Turn | Location | Event 12 | -11/Scrapyard | Discovered new exit (range 16) 60 | -11/Scrapyard | Entered Materials 248 | -10/Materials | Core integrity fell below 50% 304 | -10/Materials | Build established: Mutant 362 | -10/Materials | Discovered new exit (range 4) 370 | -10/Materials | Entered another Materials area 370 | -9/Materials | Evolved 2 slots: Utility x2 894 | -9/Materials | Identified exit to Mines 894 | -9/Materials | Identified exit to Storage 917 | -9/Materials | Discovered new exit (range 3) 1015 | -9/Materials | Entered Storage 1236 | -9/Storage | Identified exit to Garrison 1237 | -9/Storage | Entered Garrison 1299 | -9/Garrison | Triggered checkpoint 1333 | -9/Garrison | Core integrity fell below 50% 1368 | -9/Garrison | Lost 4 parts (1p1n2u) 1517 | -9/Garrison | Triggered checkpoint 1520 | -9/Garrison | Triggered checkpoint 1579 | -9/Garrison | Destroyed 8 combat bots 1594 | -9/Garrison | Triggered checkpoint 1625 | -9/Garrison | Core integrity fell below 20% 1663 | -9/Garrison | Build established: Scavenger-Mutant 1678 | -9/Garrison | Lost 5 parts (2p1n2u) 1682 | -9/Garrison | Destroyed 8 combat bots 1746 | -9/Garrison | Discovered new exit (range 12) 1754 | -9/Garrison | Learned Recycling security intel 1809 | -9/Garrison | Triggered checkpoint 1963 | -9/Garrison | Discovered new exit (range 14) 1970 | -9/Garrison | Build established: Mutant 2024 | -9/Garrison | Destroyed by Heavy Explosive Trap Last Messages --------------- 01895_ System corrupted: Matter fused (-10). 01963_ F=/MI74B=>Download(Navigation) Retrieving Recycling patrol records... Downloaded protocol data. 02019_ Triggered Tesla Bomb Trap. 02019_ A bubble of electromagnetic force engulfs the area. 02019_ A-02 Transporter destroyed. 02019_ Storage Shell breached. 02019_ Heavy Explosive Trap short circuited. 02019_ An explosion rips through the floor. 02024_ Triggered Heavy Explosive Trap. 02024_ An explosion rips through the floor. 02024_ Imp. Treads destroyed. Map ----- +----------------------------------------------------+ | # ^^^###???????????????????????????????????????? | | ^^ #???????????????????????????????????????? | | #???????????????????????????????????????? | | #???????????????????????????????????????? | | #???????????????????????????????????????? | | ###???????????????????????????????????????? | | ## % ############??????????????????????????????? | | = #??????????????????????????????? | | #??????????????????????????????? | | #??????????????????????????????? | | ############# #??????????????????????????????? | | #???????????# #??????????????????????????????? | | ###???????????# #??????????????????????????????? | | ??????????????# #??????????????????????????????? | | ??????????????# #??????????????????????????????? | | ??????????????# #??????????????????????????????? | | ??????????????# ##"""##### #?????????????????? | | ??????????????# ?????????????????? | | ??????????????# ?????????????????? | | ??????????????# ###########????????????????????? | | ??????????????# #??????????????????????????????? | | ??????????????# #?########?????????????????????? | | ??????????????# #?# "&&" "?????????????????????? | | ??????????????# #?# "&&" "?????????????????????? | | ??????????????# ### """"#?????????????????? | | ??????????????# ## = @ #?????????????????? | | ??????????????# &&# """#?????????????????? | | ??????????????# &%#m "????????????????????? | | ??????????????# #m "????????????????????? | | ??????????????# ! "????????????????????? | | ??????????????# # ????????????????????? | | ??????????????# # """ """???????????????????? | | ??????????????# # # &?? "?????????????????????? | | ??????????????# #?# "&?? "?????????????????????? | | ??????????????# #?####??##?????????????????????? | | ??????????????# #??????????????????????????????? | | ?????????###### #??????????????????????????????? | | ?????????#"T"## #??????????????????????????????? | | ?????????#" ###????????????????????????????? | | ?????????###### #????????????????????????????? | | ??????????????# < #????????????????????????????? | | ??????????????# #????????????????????????????? | | ??????????????#######????????????????????????????? | | ?????????????????????????????????????????????????? | | ?????????????????????????????????????????????????? | | ?????????????????????????????????????????????????? | | ?????????????????????????????????????????????????? | | ?????????????????????????????????????????????????? | | ?????????????????????????????????????????????????? | | ?????????????????????????????????????????????????? | +----------------------------------------------------+ Best States ------------- Heat Dissipation 52 Energy Generation 14 Energy Capacity 280 Matter Stores 300 Matter Capacity 300 Sight Range 16 Robot Scan Range 14 Terrain Scan Density 10 Armor Coverage 150 Evasion (%) 41 Melee Accuracy 5 Recoil Reduction 2 Item Schematics ----------------- None Robot Schematics ------------------ None Fabricated ------------ Nothing Alien Tech Used ----------------- None Achievements -------------- None Challenges ------------ None Game ------ Seed EnergyFireDriver Manual? 0 Play Time 00:23:27 Cumulative 26.6 hours Start 2024.07.07 @ 21:56:20 End 2024.07.07 @ 22:22:23 Sessions 1 Manual Loads 0 Difficulty Rogue Special Mode None Game No. 63 Rogue 63 Adventurer 0 Explorer 0 Win Type - Total 0 Types 0/0/0/0/0/0/0/0/0 Lore% 23 Gallery% 28 Achievement% 20 Wizard Run 0 Options --------- Layout 1 ASCII 0 Keyboard 1 Movement Arrows Keybinds 0 Fullscreen 1 Font 24/Smallcaps Map View 50x35 Zoom Use 0% Tactical HUD 1 Map Filters NONE Filters NONE Steam 1 RUN: 49eefd00-3fe5-4116-99b8-cd7dbad5c6ff